bitfinex-derivatives/quotes_BNBF0:USTF0_20260114
["timestamp","ask_amount","ask_price","bid_price","bid_amount"]
[1768354100362,0.18290664,952.4,948.98,1.55747579]
[1768354100662,0.18290664,952.4,948.69,1.55747579]
[1768354100962,0.18290664,952.4,948.93,0.18305625]
[1768354102263,0.18290664,952.4,948.61,1.55747579]
[1768354102662,0.18290664,952.4,948.8,0.18310874]
[1768354115167,5.24714644,952.32,948.8,0.18310874]
[1768354116769,5.24714644,952.32,948.12,1.55747579]
[1768354117069,5.24714644,952.32,948.72,0.18313428]
[1768354117266,5.24714644,952.05,948.72,0.18313428]
[1768354119665,5.24714644,952.05,948.1,1.55747579]
[1768354119964,5.24714644,952.05,948.61,0.18317091]
[1768354120765,5.24714644,952.05,948.09,1.55747579]
[1768354121170,5.24714644,952.05,948.61,0.18317187]
[1768354121466,5.24714644,952.06,948.61,0.18317187]
[1768354123469,5.24714644,951.92,948.61,0.18317187]
[1768354127579,5.24714644,951.91,948.61,0.18317187]
[1768354127881,5.24714644,951.91,947.97,1.55747579]
[1768354128087,5.24714644,951.91,947.96,1.55747579]
[1768354128381,5.24714644,951.91,948.55,0.18319019]
[1768354128984,5.24714644,951.91,947.89,1.55747579]
[1768354129185,5.24714644,951.91,948.45,0.18319984]
[1768354129685,5.24714644,951.81,948.45,0.18319984]
[1768354131787,5.24714644,951.77,948.45,0.18319984]
[1768354133886,5.24714644,951.93,948.45,0.18319984]
[1768354135892,0.18290664,952.4,948.45,0.18319984]
[1768354135893,5.24714644,951.91,948.45,0.18319984]
[1768354137988,5.24714644,951.9,948.45,0.18319984]
[1768354140093,5.24714644,951.86,948.45,0.18319984]
[1768354142093,5.24714644,951.83,948.45,0.18319984]
[1768354144190,5.24714644,951.76,948.45,0.18319984]
[1768354146292,5.24714644,951.73,948.45,0.18319984]
[1768354148293,5.24714644,951.79,948.45,0.18319984]
[1768354150403,5.24714644,951.78,948.45,0.18319984]
[1768354154306,5.24714644,951.78,948.45,1.74067563]
[1768354154606,5.24714644,951.8,948.45,1.74067563]
[1768354155405,5.24714644,951.8,948.46,1.55747579]
[1768354156305,5.24714644,951.8,948.48,1.55747579]
[1768354156704,5.24714644,951.79,948.48,1.55747579]
[1768354157504,5.24714644,951.79,948.49,1.55747579]
[1768354157709,5.24714644,951.79,948.5,1.55747579]
[1768354158408,5.24714644,951.79,948.51,1.55747579]
[1768354158705,5.24714644,951.78,948.51,1.55747579]
[1768354159204,35.63119212,951.7,948.51,1.55747579]
[1768354159404,35.63119212,951.7,948.54,1.55747579]
[1768354160310,35.63119212,951.7,948.56,1.55747579]
[1768354161309,35.63119212,951.7,948.58,1.55747579]
[1768354163211,5.24714644,951.73,948.48,1.55747579]
[1768354164211,36.34661692,951.61,948.48,1.55747579]
[1768354166314,36.34661692,951.61,948.49,1.55747579]
[1768354166815,5.24714644,951.63,948.49,1.55747579]
[1768354167010,5.24714644,951.62,948.49,1.55747579]
[1768354168113,36.03733088,951.53,948.49,1.55747579]
[1768354173117,36.03733088,951.53,948.63,1.55747579]
[1768354173421,36.03733088,951.53,948.64,1.55747579]
[1768354176923,36.03733088,951.53,948.59,1.55747579]
[1768354181931,36.03733088,951.53,948.62,1.55747579]
[1768354182127,36.03733088,951.53,948.61,1.55747579]
[1768354182327,36.03733088,951.53,948.62,1.55747579]
[1768354183131,36.03733088,951.53,948.59,1.55747579]
[1768354183332,36.03733088,951.53,948.6,1.55747579]
[1768354185932,35.70853794,951.44,948.6,1.55747579]
[1768354187135,5.24714644,951.7,948.6,1.55747579]
[1768354187335,35.75468379,951.61,948.6,1.55747579]
[1768354187735,35.75468379,951.61,948.59,1.55747579]
[1768354189632,5.24714644,951.68,948.59,1.55747579]
[1768354190733,5.24714644,951.68,948.6,1.55747579]
[1768354192033,36.14187898,951.59,948.6,1.55747579]
[1768354193136,36.14187898,951.59,948.59,1.55747579]
[1768354198241,36.14187898,951.59,948.63,1.55747579]
[1768354198443,36.14187898,951.59,948.69,1.55747579]
[1768354199439,36.14187898,951.59,948.68,1.55747579]
[1768354201442,36.14187898,951.59,948.66,1.55747579]
[1768354201644,36.14187898,951.59,948.63,1.55747579]
[1768354201844,36.14187898,951.59,948.6,1.55747579]
[1768354202346,36.14187898,951.59,948.53,1.55747579]
[1768354202645,36.14187898,951.59,948.52,1.55747579]
[1768354203141,36.14187898,951.59,948.51,1.55747579]
[1768354204246,36.14187898,951.59,948.45,0.18319984]
[1768354233069,5.24714644,951.89,948.45,0.18319984]
[1768354234069,34.8080694,951.8,948.45,0.18319984]
[1768354236776,5.24714644,951.89,948.45,0.18319984]
[1768354239374,34.17389181,951.8,948.45,0.18319984]
[1768354263886,34.17389181,951.8,948.47,2.59938453]
[1768354265389,34.17389181,951.8,948.61,2.59938453]
[1768354265983,34.17389181,951.8,948.68,2.59938453]
[1768354266283,0.18305818,951.01,948.68,2.59938453]
[1768354266484,0.18305818,951.01,948.65,2.59938453]
[1768354267585,0.18305818,951.01,948.72,2.59938453]
[1768354267884,34.17389181,951.8,948.72,2.59938453]
[1768354268088,34.17389181,951.8,948.75,2.59938453]
[1768354268288,0.18303699,951.11,948.75,2.59938453]
[1768354268689,0.18303699,951.11,948.45,0.18319984]
[1768354268690,0.18303699,951.11,948.77,2.59938453]
[1768354269190,34.17389181,951.8,948.81,2.59938453]
[1768354269388,0.18302207,951.26,948.81,2.59938453]
[1768354269587,0.18302207,951.26,948.79,2.59938453]
[1768354270392,0.18302207,951.26,948.81,2.59938453]
[1768354270593,0.18302207,951.26,948.77,2.59938453]
[1768354271689,0.18302207,951.26,948.74,2.59938453]
[1768354272694,0.18302207,951.26,948.71,2.59938453]
[1768354273693,0.18302207,951.26,948.76,2.59938453]
[1768354274494,0.18302207,951.26,948.86,2.59938453]
[1768354274794,0.18302207,951.26,948.83,2.59938453]
[1768354275794,0.18302207,951.26,948.81,2.59938453]
[1768354276395,0.18302207,951.26,948.79,2.59938453]
[1768354277397,0.18302207,951.26,948.77,2.59938453]
[1768354278496,0.18302207,951.26,948.76,2.59938453]
[1768354279594,34.17389181,951.8,948.76,2.59938453]
[1768354279793,0.18300908,951.38,948.76,2.59938453]
[1768354280492,0.18300908,951.38,948.8,2.59938453]
[1768354281495,0.18300908,951.38,948.79,2.59938453]
[1768354283599,0.18300908,951.38,948.78,2.59938453]
[1768354286700,0.18300908,951.38,948.79,2.59938453]
[1768354288804,0.18300908,951.38,948.78,2.59938453]
[1768354289102,0.18300908,951.38,948.68,2.59938453]
[1768354290608,0.18300908,951.38,948.69,2.59938453]
[1768354291806,0.18300908,951.38,948.7,2.59938453]
[1768354292809,0.18300908,951.38,948.71,2.59938453]
[1768354293306,0.18300908,951.38,948.72,2.59938453]
[1768354294509,0.18300908,951.38,949.44,1.54488414]
[1768354295512,0.18300908,951.38,949.46,1.54488414]
[1768354296315,0.18300908,951.38,949.47,1.54488414]
[1768354297117,0.18300908,951.38,949.51,1.54488414]
[1768354297313,0.18300908,951.38,949.61,1.54488414]
[1768354298416,0.18300908,951.38,949.64,1.54488414]
[1768354298616,0.18300908,951.38,949.65,1.54488414]
[1768354298816,0.18300908,951.38,949.67,1.54488414]
[1768354299317,0.18300908,951.38,949.69,1.54488414]
[1768354299515,0.18300908,951.38,949.71,1.54488414]
[1768354300513,0.18300908,951.38,949.73,1.54488414]
[1768354301219,0.00919851,952.33,948.68,3.63913834]
[1768354301220,0.00919851,952.33,949.74,1.54488414]
[1768354301519,0.18284081,951.73,949.98,1.54488414]
[1768354302418,0.18284081,951.73,950.0,1.54488414]
[1768354302822,0.18284081,951.73,950.08,1.54488414]
[1768354303419,0.18284081,951.73,950.1,1.54488414]
[1768354303623,0.01126614,952.68,950.19,1.54488414]
[1768354303824,0.18279711,951.91,950.2,1.54488414]
[1768354304024,0.01126614,952.68,950.2,1.54488414]
[1768354304325,0.18280095,951.77,950.21,1.54488414]
[1768354304525,0.01097854,953.63,950.21,1.54488414]
[1768354304825,0.18280047,951.77,950.21,1.54488414]
[1768354305122,5.24714644,953.91,950.21,1.54488414]
[1768354305421,0.18280047,951.77,950.2,1.54488414]
[1768354305625,0.0129969,952.72,950.2,1.54488414]
[1768354305924,0.18279615,951.77,950.2,1.54488414]
[1768354306121,5.24714644,954.01,950.2,1.54488414]
[1768354306320,0.00768615,953.67,950.2,1.54488414]
[1768354306520,0.18279615,951.77,950.21,1.54488414]
[1768354306821,5.24714644,954.01,950.21,1.54488414]
[1768354307027,0.18279567,951.77,950.21,1.54488414]
[1768354307226,0.01247838,952.72,950.21,1.54488414]
[1768354307522,0.18279567,951.77,950.23,1.54488414]
[1768354307727,5.24714644,953.97,950.22,1.54488414]
[1768354307927,0.00938756,953.67,950.22,1.54488414]
[1768354308426,5.24714644,953.97,950.24,1.54488414]
[1768354308625,0.18278847,952.81,950.24,1.54488414]
[1768354308824,5.24714644,953.97,950.24,1.54488414]
[1768354309122,0.18278751,952.17,950.24,1.54488414]
[1768354309425,5.24714644,953.97,950.25,1.54488414]
[1768354309624,0.18278751,951.86,950.25,1.54488414]
[1768354310029,5.24714644,953.95,950.25,1.54488414]
[1768354310229,0.18278799,951.86,950.25,1.54488414]
[1768354310426,5.24714644,953.95,950.26,1.54488414]
[1768354310830,0.18278799,951.86,950.26,1.54488414]
[1768354311128,5.24714644,953.95,950.26,1.54488414]
[1768354311329,0.18278751,951.86,950.27,1.54488414]
[1768354311530,5.24714644,953.95,950.27,1.54488414]
[1768354311827,0.18278703,951.86,950.27,1.54488414]
[1768354312030,5.24714644,953.94,950.27,1.54488414]
[1768354312327,0.18278751,951.86,950.27,1.54488414]
[1768354312629,5.24714644,953.94,950.27,1.54488414]
[1768354312827,0.18278751,951.86,950.27,1.54488414]
[1768354313124,5.24714644,953.94,950.27,1.54488414]
[1768354313326,0.18278751,951.86,950.27,1.54488414]
[1768354313530,0.18278751,951.86,950.24,1.54488414]
[1768354313830,5.24714644,953.91,950.24,1.54488414]
[1768354314031,0.18278751,951.86,950.24,1.54488414]
[1768354314227,5.24714644,953.91,950.24,1.54488414]
[1768354314527,0.18279039,951.86,950.24,1.54488414]
[1768354314730,0.01101774,952.81,950.24,1.54488414]
[1768354315029,0.18279039,951.86,950.24,1.54488414]
[1768354315330,5.24714644,953.91,950.24,1.54488414]
[1768354315530,0.18279039,951.86,950.24,1.54488414]
[1768354315828,5.24714644,953.93,950.24,1.54488414]
[1768354316230,0.18279039,951.86,950.24,1.54488414]
[1768354316427,0.01363947,952.81,950.24,1.54488414]
[1768354316731,0.18278943,951.86,950.24,1.54488414]
[1768354317031,0.01066747,953.76,950.24,1.54488414]
[1768354317330,0.18278943,951.86,950.24,1.54488414]
[1768354317528,5.24714644,953.93,950.24,1.54488414]
[1768354317729,0.18278943,952.89,950.24,1.54488414]
[1768354317927,0.00963659,952.81,950.24,1.54488414]
[1768354318431,0.18278943,952.23,950.25,1.54488414]
[1768354319333,0.18278943,952.23,950.26,1.54488414]
[1768354320528,0.18278943,952.23,950.43,1.54488414]
[1768354320728,0.18278943,952.23,950.58,1.54488414]
[1768354321333,0.18278943,952.23,950.52,1.54488414]
[1768354322229,0.18278943,952.23,950.5,1.54488414]
[1768354322530,0.18278943,952.23,949.83,2.59938453]
[1768354322531,0.18278943,952.23,950.51,1.54488414]
[1768354323232,0.18278943,952.23,950.49,1.54488414]
[1768354323432,0.18278943,952.23,950.53,1.54488414]
[1768354324234,0.18278943,952.23,950.52,1.54488414]
[1768354324438,0.18278943,952.23,950.53,1.54488414]
[1768354324638,0.18278943,952.23,950.54,1.54488414]
[1768354325234,0.18278943,952.23,950.53,1.54488414]
[1768354326239,0.18278943,952.23,950.52,1.54488414]
[1768354327235,0.18278943,952.23,950.51,1.54488414]
[1768354327440,0.18278943,952.23,950.6,1.54488414]
[1768354328338,0.18278943,952.23,950.58,1.54488414]
[1768354328639,0.18278943,952.23,950.59,1.54488414]
[1768354329235,0.18278943,952.23,950.58,1.54488414]
[1768354330242,0.18278943,952.23,950.57,1.54488414]
[1768354331242,0.18278943,952.23,950.56,1.54488414]
[1768354331439,0.18278943,952.23,950.55,1.54488414]
[1768354332042,0.18278943,952.23,950.53,1.54488414]
[1768354332340,0.18278943,952.23,950.44,37.54612175]
[1768354332341,0.18278943,952.23,950.46,1.54488414]
[1768354332645,0.18278943,952.23,950.44,37.54612175]
[1768354336349,0.18278943,952.23,950.44,39.09100589]
[1768354337344,0.18278943,952.23,950.46,1.54488414]
[1768354337749,0.01206218,953.18,950.68,1.54488414]
[1768354337949,0.18272656,952.23,950.68,1.54488414]
[1768354338149,0.01206218,953.18,950.66,1.54488414]
[1768354338449,0.18271601,952.23,950.67,1.54488414]
[1768354338847,0.01255077,954.13,950.67,1.54488414]
[1768354339045,0.18271649,952.23,950.67,1.54488414]
[1768354339350,37.81495424,954.28,950.68,1.54488414]
[1768354339549,0.18271265,952.27,950.68,1.54488414]
[1768354339849,37.81495424,954.28,950.68,1.54488414]
[1768354340143,0.18271217,952.27,950.68,1.54488414]
[1768354340346,37.81495424,954.28,950.7,1.54488414]
[1768354340546,0.1827045,952.35,950.71,1.54488414]
[1768354340849,37.81495424,954.28,950.71,1.54488414]
[1768354341149,5.24714644,954.45,950.71,1.54488414]
[1768354341150,0.18270306,952.35,950.71,1.54488414]
[1768354341448,5.24714644,954.45,950.72,1.54488414]
[1768354341649,0.1826997,952.3,950.72,1.54488414]
[1768354341847,5.24714644,954.41,950.72,1.54488414]
[1768354342047,5.24714644,954.41,950.71,1.54488414]
[1768354342246,0.18269922,952.3,950.71,1.54488414]
[1768354342450,0.00914213,953.25,950.73,1.54488414]
[1768354342650,0.18270162,952.3,950.73,1.54488414]
[1768354342952,37.5802941,954.32,950.73,1.54488414]
[1768354343249,0.18270402,952.31,950.73,1.54488414]
[1768354343452,37.5802941,954.32,950.75,1.54488414]
[1768354343753,0.18270402,952.31,950.75,1.54488414]
[1768354344153,0.01281534,953.26,950.75,1.54488414]
[1768354344353,0.18270306,952.31,950.76,1.54488414]
[1768354344651,5.24714644,954.38,950.76,1.54488414]
[1768354344848,0.18270258,952.31,950.76,1.54488414]
[1768354345153,0.00873118,953.26,950.76,1.54488414]
[1768354345354,0.1826997,952.31,950.78,1.54488414]
[1768354345654,37.78241314,954.29,950.78,1.54488414]
[1768354346157,0.00738012,953.26,950.78,1.54488414]
[1768354346354,0.00738012,953.26,950.81,1.54488414]
[1768354346556,0.18270306,953.42,950.81,1.54488414]
[1768354348357,0.18270306,953.42,950.82,1.54488414]
[1768354348558,0.18270306,953.42,950.85,1.54488414]
[1768354348761,0.18270306,953.42,950.89,1.54488414]
[1768354349258,0.18270306,953.42,950.88,1.54488414]
[1768354349462,0.18270306,953.42,950.89,1.54488414]
[1768354350163,0.18270306,953.42,950.88,1.54488414]
[1768354350459,0.18270306,953.42,950.89,1.54488414]
[1768354351160,0.18270306,953.42,950.88,1.54488414]
[1768354351459,0.18270306,953.42,950.89,1.54488414]
[1768354353367,0.18270306,953.42,950.9,1.54488414]
[1768354353567,0.18270306,953.42,950.8,1.54488414]
[1768354355070,0.18270306,953.42,950.81,1.54488414]
[1768354355370,0.18270306,953.42,950.82,1.54488414]
[1768354355570,0.18270306,953.42,950.87,1.54488414]
[1768354355866,0.18270306,953.42,950.92,1.54488414]
[1768354356466,0.18270306,953.42,950.93,1.54488414]
[1768354357167,0.18270306,953.42,950.92,1.54488414]
[1768354357368,0.18270306,953.42,950.93,1.54488414]
[1768354358377,0.18270306,953.42,950.94,1.54488414]
[1768354359273,0.18270306,953.42,950.93,1.54488414]
[1768354359470,0.18270306,953.42,950.95,1.54488414]
[1768354360174,0.18270306,953.42,950.94,1.54488414]
[1768354360372,0.18270306,953.42,950.96,1.54488414]
[1768354361276,0.18270306,953.42,950.95,1.54488414]
[1768354361574,0.18270306,953.42,950.96,1.54488414]
[1768354361774,0.18270306,953.42,950.97,1.54488414]
[1768354362276,0.18270306,953.42,950.96,1.54488414]
[1768354362578,0.18270306,953.42,950.92,1.54488414]
[1768354362773,0.18270306,953.42,950.76,1.54488414]
[1768354363172,0.18270306,953.42,950.75,1.54488414]
[1768354363477,0.18270306,953.42,950.87,1.54488414]
[1768354364477,0.18270306,953.42,950.89,1.54488414]
[1768354365379,0.18270306,953.42,950.9,1.54488414]
[1768354368185,0.18270306,953.42,950.91,1.54488414]
[1768354371286,0.18270306,953.42,950.93,1.54488414]
[1768354372287,0.18270306,953.42,950.94,1.54488414]
[1768354375789,0.18270306,953.42,951.04,1.54488414]
[1768354378192,0.18270306,953.42,951.05,1.54488414]
[1768354379189,0.18270306,953.42,951.06,1.54488414]
[1768354381291,0.18270306,953.42,951.07,1.54488414]
[1768354382289,0.18270306,953.42,951.09,1.54488414]
[1768354384690,0.18270306,953.42,951.08,1.54488414]
[1768354385293,0.18270306,953.42,951.09,1.54488414]
[1768354386390,0.18270306,953.42,951.08,1.54488414]
[1768354386693,0.18270306,953.42,950.99,1.54488414]
[1768354386889,0.18270306,953.42,950.96,1.54488414]
[1768354387190,0.18270306,953.42,950.93,1.54488414]
[1768354390293,0.18270306,953.42,950.91,1.54488414]
[1768354392394,0.18270306,953.42,950.9,1.54488414]
[1768354393399,0.18270306,953.42,950.88,1.54488414]
[1768354396099,0.18270306,953.42,950.81,1.54488414]
[1768354396402,0.18270306,953.42,950.76,1.54488414]
[1768354396602,0.18270306,953.42,950.73,1.54488414]
[1768354396802,0.18270306,953.42,950.71,1.54488414]
[1768354397001,0.18270306,953.42,950.68,34.66318742]
[1768354493696,0.18270306,953.42,950.45,36.85876557]
[1768354501500,0.18270306,953.42,949.78,2.59938453]
[1768354503402,0.18270306,953.42,949.79,2.59938453]
[1768354503897,0.18270306,953.42,949.95,2.59938453]
[1768354504999,0.18270306,953.42,950.04,36.92439697]
[1768354546126,5.24714644,953.57,950.04,36.92439697]
[1768354546527,0.1828144,952.58,950.04,36.92439697]
[1768354546829,5.24714644,953.57,950.04,36.92439697]
[1768354547030,0.1828144,952.69,950.04,36.92439697]
[1768354608678,0.1828144,952.69,948.93,2.59938453]
[1768354608877,0.1828144,952.69,949.63,35.0866684]
[1768354609076,0.1828144,952.69,949.74,0.18295905]
[1768354609983,5.24714644,953.27,949.63,35.0866684]
[1768354611682,5.24714644,953.26,949.63,35.0866684]
[1768354612281,5.24714644,953.26,949.59,35.25642353]
[1768354613684,5.24714644,953.17,949.59,35.25642353]
[1768354614182,0.18293789,952.28,949.73,0.18293789]
[1768354649616,0.18293789,952.28,949.59,35.25642353]
[1768354664833,0.18293789,952.28,947.85,2.59938453]
[1768354665427,0.18293789,952.28,948.85,0.18314344]
[1768354667933,5.24714644,952.23,947.56,2.59938453]
[1768354668128,5.24714644,952.23,948.71,0.18316898]
[1768354670030,5.24714644,952.27,948.71,0.18316898]
[1768354672136,0.18293789,952.28,948.71,0.18316898]
[1768354684645,5.24714644,952.2,948.71,0.18316898]
[1768354686546,5.24714644,952.15,948.71,0.18316898]
[1768354688752,5.24714644,952.03,948.71,0.18316898]
[1768354690748,5.24714644,951.99,948.71,0.18316898]
[1768354692954,5.24714644,951.95,948.71,0.18316898]
[1768354694853,5.24714644,952.02,948.71,0.18316898]
[1768354696954,5.24714644,952.0,948.71,0.18316898]
[1768354698458,5.24714644,952.0,947.55,2.59938453]
[1768354698660,5.24714644,952.0,948.6,0.18319598]
[1768354699159,5.24714644,951.85,948.6,0.18319598]
[1768354701161,5.24714644,951.79,948.6,0.18319598]
[1768354703163,5.24714644,951.75,948.6,0.18319598]
[1768354705466,5.24714644,951.7,948.6,0.18319598]
[1768354707366,5.24714644,951.71,948.6,0.18319598]
[1768354709568,5.24714644,951.72,948.6,0.18319598]
[1768354711568,5.24714644,951.75,948.6,0.18319598]
[1768354713673,5.24714644,951.9,948.6,0.18319598]
[1768354715773,5.24714644,951.91,948.6,0.18319598]
[1768354717771,5.24714644,951.93,948.6,0.18319598]
[1768354722176,5.24714644,951.9,948.6,0.18319598]
[1768354724181,5.24714644,951.61,948.6,0.18319598]
[1768354726180,5.24714644,951.6,948.6,0.18319598]
[1768354728276,5.24714644,951.65,948.6,0.18319598]
[1768354730382,5.24714644,951.63,948.6,0.18319598]
[1768354732583,5.24714644,951.57,948.6,0.18319598]
[1768354733784,35.74515002,951.53,948.6,0.18319598]
[1768354737786,35.74515002,951.53,947.92,37.85129923]
[1768354737989,35.74515002,951.53,948.49,0.18321672]
[1768354754493,35.74515002,951.53,947.92,37.85129923]
[1768354754700,35.74515002,951.53,948.32,0.18323312]
[1768354773920,5.24714644,951.48,948.32,0.18323312]
[1768354778123,5.24714644,951.47,948.32,0.18323312]
[1768354782128,5.24714644,951.45,948.32,0.18323312]
[1768354784330,35.74515002,951.53,948.32,0.18323312]
[1768354788741,35.74515002,951.53,947.92,37.85129923]
[1768354789142,35.74515002,951.53,948.21,0.18324228]
[1768354789941,35.74515002,951.53,947.92,37.85129923]
[1768354790140,35.74515002,951.53,948.08,0.18325627]
[1768354790545,5.24714644,951.32,948.08,0.18325627]
[1768354792241,0.77361451,951.31,948.08,0.18325627]
[1768354792541,0.77361451,951.3,948.08,0.18325627]
[1768354792844,5.24714644,951.24,948.08,0.18325627]
[1768354793044,0.77361451,951.23,948.08,0.18325627]
[1768354793243,0.77361451,951.22,948.08,0.18325627]
[1768354793445,0.77361451,951.21,948.08,0.18325627]
[1768354793645,0.77361451,951.2,947.92,37.85129923]
[1768354793941,5.24714644,951.24,947.97,0.18328233]
[1768354793942,0.77361451,951.19,947.97,0.18328233]
[1768354794147,0.77361451,951.18,947.97,0.18328233]
[1768354794445,0.77361451,951.17,947.97,0.18328233]
[1768354794645,0.77361451,951.16,947.97,0.18328233]
[1768354794840,0.77361451,951.15,947.97,0.18328233]
[1768354795041,0.77361451,951.14,947.97,0.18328233]
[1768354795243,0.77361451,951.13,947.92,37.85129923]
[1768354795442,0.77361451,951.12,947.92,37.85129923]
[1768354795745,0.77361451,951.11,947.92,37.85129923]
[1768354795941,0.77361451,951.1,947.92,37.85129923]
[1768354796146,0.77361451,951.09,947.92,37.85129923]
[1768354796347,0.77361451,951.08,947.92,37.85129923]
[1768354796648,0.77361451,951.07,947.92,37.85129923]
[1768354796848,0.77361451,951.06,947.93,0.18329247]
[1768354797045,0.77361451,951.05,947.93,0.18329247]
[1768354797249,0.77361451,951.04,947.93,0.18329247]
[1768354797549,0.77361451,951.03,947.93,0.18329247]
[1768354797844,0.77361451,951.02,947.93,0.18329247]
[1768354798145,0.77361451,951.01,947.93,0.18329247]
[1768354798449,0.77361451,951.0,947.93,0.18329247]
[1768354798649,0.77361451,950.99,947.93,0.18329247]
[1768354798847,0.77361451,950.98,947.93,0.18329247]
[1768354799145,0.77361451,950.97,947.93,0.18329247]
[1768354799350,0.77361451,950.96,947.93,0.18329247]
[1768354799551,0.77361451,950.95,947.93,0.18329247]
[1768354799751,0.77361451,950.94,947.93,0.18329247]
[1768354800054,0.77361451,950.93,947.93,0.18329247]
[1768354800250,0.77361451,950.92,947.93,0.18329247]
[1768354800550,0.77361451,950.91,947.93,0.18329247]
[1768354800849,0.77361451,950.9,947.93,0.18329247]
[1768354801053,0.77361451,950.89,947.93,0.18329247]
[1768354801250,5.24714644,951.25,947.93,0.18329247]
[1768354802354,5.24714644,951.25,947.92,37.85129923]
[1768354803050,5.24714644,951.12,947.92,37.85129923]
[1768354804656,0.7720277,951.11,947.92,37.85129923]
[1768354804956,0.7720277,951.1,947.92,37.85129923]
[1768354805150,5.24714644,951.08,947.92,37.85129923]
[1768354805350,0.7720277,951.07,947.92,37.85129923]
[1768354805656,0.7720277,951.06,947.92,37.85129923]
[1768354805856,0.7720277,951.05,947.92,37.85129923]
[1768354806151,0.7720277,951.04,947.92,37.85129923]
[1768354806355,0.7720277,951.03,947.92,37.85129923]
[1768354806556,0.7720277,951.02,947.92,37.85129923]
[1768354806753,0.7720277,951.01,947.92,37.85129923]
[1768354806959,0.7720277,951.0,947.92,37.85129923]
[1768354807155,5.24714644,950.98,947.92,37.85129923]
[1768354807355,0.7720277,950.97,947.92,37.85129923]
[1768354807556,0.7720277,950.96,947.92,37.0600345]
[1768354807756,0.7720277,950.95,947.92,37.0600345]
[1768354807957,0.7720277,950.94,947.92,37.0600345]
[1768354808160,0.7720277,950.93,947.92,37.0600345]
[1768354808362,0.7720277,950.92,947.92,37.0600345]
[1768354808562,0.7720277,950.91,947.92,37.0600345]
[1768354808759,0.7720277,950.9,947.92,37.0600345]
[1768354809061,0.7720277,950.89,947.92,37.0600345]
[1768354809361,0.7720277,950.88,947.92,37.0600345]
[1768354809557,0.7720277,950.87,947.92,37.0600345]
[1768354809762,0.7720277,950.86,947.92,37.0600345]
[1768354809963,0.7720277,950.85,947.92,37.0600345]
[1768354810164,0.7720277,950.84,947.92,37.0600345]
[1768354810366,0.7720277,950.83,947.92,37.0600345]
[1768354810565,0.7720277,950.82,947.92,37.0600345]
[1768354810867,0.7720277,950.81,947.92,37.0600345]
[1768354811166,0.7720277,950.8,947.92,37.0600345]
[1768354811461,0.7720277,950.79,947.92,37.0600345]
[1768354811666,0.7720277,950.78,947.92,37.0600345]
[1768354811866,0.7720277,950.77,947.92,37.0600345]
[1768354812068,0.7720277,950.76,947.92,37.0600345]
[1768354812267,0.7720277,950.75,947.92,37.0600345]
[1768354812567,0.7720277,950.74,947.92,37.0600345]
[1768354812766,0.7720277,950.73,947.92,37.0600345]
[1768354812967,0.7720277,950.72,947.92,37.0600345]
[1768354813167,0.7720277,950.71,947.92,37.0600345]
[1768354813468,0.7720277,950.7,947.92,37.0600345]
[1768354813664,0.7720277,950.69,947.92,37.0600345]
[1768354813868,0.7720277,950.68,947.92,37.0600345]
[1768354814065,0.7720277,950.67,947.92,37.0600345]
[1768354814268,0.7720277,950.66,947.92,37.0600345]
[1768354814469,0.18335911,950.0,947.92,37.0600345]
[1768354814669,0.7720277,949.99,947.92,37.0600345]
[1768354814969,0.7720277,949.98,947.92,37.0600345]
[1768354815168,0.7720277,949.97,947.92,37.0600345]
[1768354815369,0.7553337,949.96,947.92,37.0600345]
[1768354815571,0.7553337,949.95,947.92,37.0600345]
[1768354815869,0.7553337,949.94,947.92,37.0600345]
[1768354816169,0.7553337,949.93,947.92,37.0600345]
[1768354816464,0.7553337,949.92,947.92,37.0600345]
[1768354816669,0.7553337,949.91,947.92,37.0600345]
[1768354816866,0.7553337,949.9,947.92,37.0600345]
[1768354817069,0.7553337,949.89,947.92,37.0600345]
[1768354817369,0.7553337,949.88,947.92,37.0600345]
[1768354817568,0.7553337,949.87,947.92,37.0600345]
[1768354817871,0.7553337,949.86,947.92,37.0600345]
[1768354818068,0.7553337,949.85,947.92,37.0600345]
[1768354818371,0.7553337,949.84,947.92,37.0600345]
[1768354818570,0.7553337,949.83,947.92,37.0600345]
[1768354818767,0.7553337,949.82,947.92,37.0600345]
[1768354818971,0.75489955,949.81,947.92,37.0600345]
[1768354819268,0.75489955,949.8,947.92,37.0600345]
[1768354819471,0.75489955,949.79,947.92,37.0600345]
[1768354819669,0.75489955,949.78,947.92,37.0600345]
[1768354819872,0.75489955,949.77,947.92,37.0600345]
[1768354820071,0.75489955,949.76,947.92,37.0600345]
[1768354820270,0.75489955,949.75,947.92,37.0600345]
[1768354820469,0.75489955,949.74,947.92,37.0600345]
[1768354820673,0.75489955,949.73,947.92,37.0600345]
[1768354820870,0.75489955,949.72,947.92,37.0600345]
[1768354821172,0.75489955,949.71,947.92,37.0600345]
[1768354821373,0.75489955,949.7,947.92,37.0600345]
[1768354821570,0.75489955,949.69,947.92,37.0600345]
[1768354821769,0.75489955,949.68,947.92,37.0600345]
[1768354821969,0.75489955,949.67,947.92,37.0600345]
[1768354822169,0.75489955,949.66,947.92,37.0600345]
[1768354822369,0.75489955,949.65,947.92,37.0600345]
[1768354822574,0.75489955,949.64,947.92,37.0600345]
[1768354822873,0.75489955,949.63,947.92,37.0600345]